Cogmind - Beta 13 @@@ ROGUE MODE // 2024.04.28 @ 20:33:49 Player: Ivanna Dostya Result: Destroyed by G-47 Trooper with Particle Gun Performance ------------- Evolutions (2) 1000 Regions Visited (7) 1400 Robots Destroyed (35) 175 Value Destroyed (824) 824 Prototype IDs (24) 480 Alien Tech Used (0) 0 Bonus (350) 350 TOTAL SCORE: 4229 Bonus ------- Follower Combat Kills 50 Aligned with FarCom 300 Cogmind --------- Core Integrity 0/550 Matter 280/300 Energy 88/100 System Corruption 0% Temperature Cool (45) Movement Core (50) Location -8/Materials Parts ------- > --- POWER (1) -------- (None) > --- PROPULSION (5) --- (None) > --- UTILITY (3) ------ (None) > --- WEAPON (2) ------- Katana > --- INVENTORY (5) ---- Light Armor Plating Improved Medium Laser Improved Medium Laser Peak State ------------ > --- POWER ------------ Deuterium Engine > --- PROPULSION ------- Light Treads Improved Treads Improved Treads > --- UTILITY ---------- Medium Storage Unit 0b10 Alert Chip Hardened Medium Armor Plating > --- WEAPON ----------- Beam Rifle Field Laser > --- INVENTORY -------- Deuterium Engine Compact Wheel Flight Unit Flight Unit Flight Unit Beam Rifle Improved Medium Laser Improved Medium Laser Improved Medium Laser Katana [Rating: 25] Favorites ----------- Power Deuterium Engine Engine Deuterium Engine Propulsion Light Treads Treads Light Treads Leg Titanium Leg Wheel Compact Wheel Flight Unit Flight Unit Utility Medium Storage Unit Device Heat Sink Storage Medium Storage Unit Processor Visual Processing Unit Protection Light Armor Plating Weapon Beam Rifle Energy Gun Beam Rifle Slashing Weapon Katana Piercing Weapon Makeshift Spear Build | -11 -10 -10 -9 -9 -9 -8 -8 ------- Run | Yrd Mat Min Mat Min Exi Min Mat Slots Evolved 4 | . . . 2 . . . 2 Power . | . . . . . . . . Propulsion 3 | . . . 1 . . . 2 Utility 1 | . . . 1 . . . . Weapon . | . . . . . . . . Parts Attached 47 | 7 7 9 3 3 . 7 11 Power 5 | 2 1 1 . . . . 1 Engine 5 | 2 1 1 . . . . 1 Core . | . . . . . . . . Reactor . | . . . . . . . . Propulsion 13 | 2 . 2 2 1 . 2 4 Treads 6 | 1 . 1 2 1 . 1 . Leg 1 | . . 1 . . . . . Wheel 3 | 1 . . . . . 1 1 Hover . | . . . . . . . . Flight 3 | . . . . . . . 3 Utility 13 | 1 2 2 1 2 . 3 2 Device 3 | . 1 1 . 1 . . . Storage 4 | 1 1 1 . . . . 1 Processor 3 | . . . . 1 . 1 1 Hackware . | . . . . . . . . Protection 3 | . . . 1 . . 2 . Artifact . | . . . . . . . . Weapon 16 | 2 4 4 . . . 2 4 Energy Gun 13 | 2 4 3 . . . 2 2 Energy Cannon . | . . . . . . . . Ballistic Gun . | . . . . . . . . Ballistic Cannon . | . . . . . . . . Launcher . | . . . . . . . . Special Weapon . | . . . . . . . . Impact Weapon . | . . . . . . . . Slashing Weapon 2 | . . . . . . . 2 Piercing Weapon 1 | . . 1 . . . . . Special Melee Weapon . | . . . . . . . . Unidentified Prototypes 1 | . 1 . . . . . . Parts Lost 13 | . . . . . . 2 11 Power 2 | . . . . . . . 2 Propulsion 6 | . . . . . . . 6 Utility 3 | . . . . . . 2 1 Weapon 2 | . . . . . . . 2 Highest Loss Streak 6 | . . . . . . 1 6 To Critical Strikes . | . . . . . . . . Average Slot Usage (%) 94 | . 95 99 88 100 100 99 65 Engine 11 | . 14 14 11 11 11 11 5 Treads 22 | . 14 14 22 33 33 32 12 Leg 2 | . . 12 5 . . . . Wheel 3 | . 14 1 . . . . 2 Device 7 | . 9 12 11 10 11 1 . Storage 12 | . 14 15 11 11 11 11 8 Protection 7 | . . . 5 11 11 18 12 Energy Gun 23 | . 28 27 22 22 22 22 10 Naked Turns 1 | . . . . . . . 1 Heaviest Build 34 | 12 22 26 29 29 29 34 34 Greatest Support 66 | 20 20 20 63 66 66 66 20 Greatest Overweight (x) 2 | . 1 1 1 . . 2 1 Average Overweight (x) . | . . 1 . . . . . Largest Inventory Capacity 10 | 8 10 10 10 10 10 10 10 Average Capacity 9 | 7 9 10 10 10 10 10 9 Most Carried 10 | 3 10 10 10 10 10 10 10 Average Carried 8 | 1 7 9 9 9 9 9 7 Final Capacity 10 | 8 10 10 10 10 10 10 5 Final Carried 10 | 3 10 10 10 9 10 8 3 Class Distribution -------------------- 96% | Mutant 3% | Skirmisher Dominant Class ---------------- Mutant | -10/Materials Mutant | -10/Mines Mutant | -9/Materials Mutant | -9/Mines Mutant | -9/Exiles Mutant | -8/Mines Mutant | -8/Materials Resources | -11 -10 -10 -9 -9 -9 -8 -8 ----------- Run | Yrd Mat Min Mat Min Exi Min Mat Matter Collected 690 | 200 162 108 . 55 . 107 58 Remotely . | . . . . . . . . Salvage Created 1093 | . 230 148 72 103 . 349 191 Parts 67 | . 16 9 5 13 . 14 10 Haulers Intercepted . | . . . . . . . . Recyclers Shooed 3 | . 1 . . . . 2 . Parts Field Recycled . | . . . . . . . . Retrieved Matter . | . . . . . . . . Parts Self-Destructed . | . . . . . . . . Prevented . | . . . . . . . . Kills | -11 -10 -10 -9 -9 -9 -8 -8 ------- Run | Yrd Mat Min Mat Min Exi Min Mat Combat Hostiles Destroyed 30 | . 6 5 1 7 . 8 3 Melee 4 | . . . . . . 1 3 Guns 26 | . 6 5 1 7 . 7 . Classes Destroyed 9 | 1 3 1 . . . 3 1 Worker 1 | . . . . . . . 1 Tunneler 1 | 1 . . . . . . . Recycler 1 | . . . . . . 1 . Watcher 2 | . 1 . 1 . . . . Swarmer 16 | . 2 3 . 7 . 4 . Grunt 8 | . 4 . . . . 2 2 Brawler 1 | . . . . . . 1 . Sentry 4 | . . 2 1 . . . 1 Hunter 1 | . . . . . . 1 . Best Kill Streak 4 | 1 2 2 2 4 . 4 2 Combat Bots Only 4 | . 2 2 1 4 . 4 2 Max Kills in Single Turn 2 | 1 1 1 1 2 . 1 1 Gunslinging . | . . . . . . . . Exploded . | . . . . . . . . Melee 1 | . . . . . . 1 1 Uniques/NPCs Destroyed . | . . . . . . . . Combat | -11 -10 -10 -9 -9 -9 -8 -8 -------- Run | Yrd Mat Min Mat Min Exi Min Mat Hostile Shots Fired 221 | . 18 24 11 20 . 33 115 Missed 57 | . 9 5 5 6 . 6 26 Damage Taken 2325 | . 166 233 64 110 . 352 1400 Core 728 | . 60 50 . 18 . 44 556 Absorbed by Shields . | . . . . . . . . Redirected to Shielding 17 | . . . . . . . 17 Core Remaining (%) 80 | 100 . 56 . . . 84 . Volleys Fired 70 | . 17 11 3 10 . 18 11 Largest 2 | . 2 2 2 2 . 2 2 Hottest 119 | . 112 119 119 119 . 119 112 Shots Fired 130 | . 35 23 6 20 . 30 16 Gun 130 | . 35 23 6 20 . 30 16 Cannon . | . . . . . . . . Launcher . | . . . . . . . . Special . | . . . . . . . . Kinetic . | . . . . . . . . Thermal 130 | . 35 23 6 20 . 30 16 Explosive . | . . . . . . . . Electromagnetic . | . . . . . . . . Robot Hit Streak 19 | . 19 5 10 12 . 6 7 Robot Miss Streak 4 | . 1 2 . 4 . 4 2 Penetration Max . | . . . . . . . . Secondary Targets 4 | . . . 1 1 . 2 . Max Gunslinging Chain 1 | . . . 1 1 . 1 . Shots Hit Robots 88 | . 26 12 5 10 . 18 17 Core Hits 47 | . 12 7 3 7 . 11 7 Critical Kills . | . . . . . . . . Critical Parts Destroyed . | . . . . . . . . Critical Strikes 7 | . 2 1 1 1 . . 2 Burn 7 | . 2 1 1 1 . . 2 Melee Attacks 10 | . . . . . . . 10 Impact . | . . . . . . . . Slashing 10 | . . . . . . . 10 Piercing . | . . . . . . . . Sneak Attacks 2 | . . . . . . . 2 Combat Hostiles . | . . . . . . . . Follow-up Attacks . | . . . . . . . . Damage Inflicted 1554 | 3 352 185 76 178 . 311 449 Guns 1244 | . 352 185 76 171 . 302 158 Cannons . | . . . . . . . . Explosions . | . . . . . . . . Melee 290 | . . . . . . . 290 Ramming 20 | 3 . . . 7 . 9 1 Kinetic . | . . . . . . . . Thermal 1244 | . 352 185 76 171 . 302 158 Explosive . | . . . . . . . . Electromagnetic . | . . . . . . . . Impact . | . . . . . . . . Slashing 290 | . . . . . . . 290 Piercing . | . . . . . . . . Highest Corruption 4 | . 3 3 . . . 4 . Average Corruption 3 | . 2 3 . . . 4 . Corruption Purged . | . . . . . . . . Corruption Blocked . | . . . . . . . . Effects 24 | . 10 9 . . . 5 . Message Errors 6 | . 2 1 . . . 3 . Matter Fused 6 | . 4 1 . . . 1 . Energy Discharges 3 | . . 2 . . . 1 . Parts Rejected 1 | . . 1 . . . . . Data Loss (minor) 6 | . 3 3 . . . . . Misfires 2 | . 1 1 . . . . . Overload Shots . | . . . . . . . . Overflow Damage . | . . . . . . . . Projectiles . | . . . . . . . . Explosions . | . . . . . . . . Melee . | . . . . . . . . Knockbacks . | . . . . . . . . Impact . | . . . . . . . . Kinetic . | . . . . . . . . Secondary . | . . . . . . . . Self-Inflicted Damage . | . . . . . . . . Shots . | . . . . . . . . Rammed 6 | . . . . 1 . 2 3 Targets Rammed 8 | 1 . . . 1 . 3 3 Kicked . | . . . . . . . . Crushed 2 | 1 . . . . . 1 . Highest Temperature 516 | . 111 300 82 300 . 516 384 Average Temperature 131 | . 34 125 51 103 . 184 160 Received Heat Transfer 1005 | . 51 72 18 . . 72 792 Effects 13 | . . . . . . 10 3 Shutdowns 3 | . . . . . . 2 1 Energy Bleed 1 | . . . . . . . 1 Interference 3 | . . . . . . 2 1 Matter Decay 1 | . . . . . . 1 . Short Circuit 1 | . . . . . . 1 . Damage (major) 4 | . . . . . . 4 . Siege Activations . | . . . . . . . . Robots Corrupted . | . . . . . . . . Combat Hostiles . | . . . . . . . . Parts Fried . | . . . . . . . . Impact Corruptions . | . . . . . . . . Robots Melted . | . . . . . . . . Combat Hostiles . | . . . . . . . . Parts Melted 6 | . 2 2 1 . . . 1 Heat Transferred 3397 | . 918 518 259 481 . 703 518 Parts Sabotaged . | . . . . . . . . Parts Stolen . | . . . . . . . . Parts Stripped . | . . . . . . . . Power Chain Reactions . | . . . . . . . . Alert | -11 -10 -10 -9 -9 -9 -8 -8 ------- Run | Yrd Mat Min Mat Min Exi Min Mat Peak Influence 239 | 5 239 170 130 205 . 168 127 Initial 50 | . 3 15 . 50 . . . Average 76 | . 88 63 17 169 . 96 31 Maximum Alert Level 1 | . 1 . . 1 . . . Low Security (%) 94 | 100 96 100 100 57 . 100 100 Level 1 5 | . 3 . . 42 . . . Level 2 . | . . . . . . . . Level 3 . | . . . . . . . . Level 4 . | . . . . . . . . Level 5 . | . . . . . . . . High Security . | . . . . . . . . Max Security . | . . . . . . . . Squads Dispatched 8 | . 1 . 1 . . 1 5 Investigation 4 | . . . . . . 1 3 Extermination . | . . . . . . . . Reinforcement 3 | . 1 . 1 . . . 1 Assault . | . . . . . . . . Garrison 1 | . . . . . . . 1 Intercept . | . . . . . . . . Searches Triggered . | . . . . . . . . Construction Impeded . | . . . . . . . . Haulers Reinforced . | . . . . . . . . Active Scanning Responses . | . . . . . . . . Cargo Convoy Interrupts . | . . . . . . . . Stealth | -11 -10 -10 -9 -9 -9 -8 -8 --------- Run | Yrd Mat Min Mat Min Exi Min Mat Distress Signals 1 | . . . 1 . . . . Communications Jammed . | . . . . . . . . Distress Signals . | . . . . . . . . Times Spotted 58 | . 11 6 4 8 . 8 21 Peak Tracking Total 12 | . 3 4 4 4 . 4 12 Tactical Retreats 5 | . 1 2 . 1 . . 1 Traps | -11 -10 -10 -9 -9 -9 -8 -8 ------- Run | Yrd Mat Min Mat Min Exi Min Mat Traps Triggered 6 | . 4 . . . . . 2 Indirectly . | . . . . . . . . Trap Hack Attempts . | . . . . . . . . Triggered . | . . . . . . . . Disarmed . | . . . . . . . . Reprogrammed . | . . . . . . . . Reused . | . . . . . . . . Traps Extracted . | . . . . . . . . Installed . | . . . . . . . . Triggered . | . . . . . . . . Machines | -11 -10 -10 -9 -9 -9 -8 -8 ---------- Run | Yrd Mat Min Mat Min Exi Min Mat Machines Disabled 1 | . . . . . . . 1 Max in Single Turn 1 | . . . . . . . 1 Machines Repaired . | . . . . . . . . Machines Dismantled . | . . . . . . . . Machines Sabotaged . | . . . . . . . . Overloaded Fab Kills . | . . . . . . . . Hacking | -11 -10 -10 -9 -9 -9 -8 -8 --------- Run | Yrd Mat Min Mat Min Exi Min Mat Machines Accessed 5 | . 1 1 . . 1 1 1 Terminals 3 | . 1 . . . . 1 1 Fabricators . | . . . . . . . . Repair Stations . | . . . . . . . . Recycling Units . | . . . . . . . . Scanalyzers . | . . . . . . . . Garrison Access . | . . . . . . . . Total Hacks 13 | . 6 1 . . 1 2 3 Successful 5 | . 3 1 . . 1 . . Failed 8 | . 3 . . . . 2 3 Catastrophic 2 | . . . . . . 1 1 Database Lockouts . | . . . . . . . . Manual 11 | . 6 . . . 1 1 3 Terminals 11 | . 6 . . . . 2 3 Fabricators . | . . . . . . . . Repair Stations . | . . . . . . . . Recycling Units . | . . . . . . . . Scanalyzers . | . . . . . . . . Garrison Access . | . . . . . . . . Terminal Hacks 4 | . 2 1 . . 1 . . Open Door 1 | . . 1 . . . . . Branch Access Points 1 | . 1 . . . . . . Terminal Index 1 | . 1 . . . . . . Derelict Proto ID Bank 1 | . . . . . 1 . . Fabricator Hacks . | . . . . . . . . Repair Station Hacks . | . . . . . . . . Recycling Unit Hacks . | . . . . . . . . Scanalyzer . | . . . . . . . . Garrison Access Hacks . | . . . . . . . . Unauthorized Hacks 1 | . 1 . . . . . . Terminals 1 | . 1 . . . . . . Botnet 1 | . 1 . . . . . . Fabricators . | . . . . . . . . Repair Stations . | . . . . . . . . Recycling Units . | . . . . . . . . Scanalyzers . | . . . . . . . . Garrison Access . | . . . . . . . . Data Cores Recovered . | . . . . . . . . Used . | . . . . . . . . Hacking Detections 3 | . 1 . . . . 1 1 Full Trace Events 2 | . . . . . . 1 1 Feedback Events . | . . . . . . . . Feedback Blocked . | . . . . . . . . Robot Schematics Acquired . | . . . . . . . . Robots Built . | . . . . . . . . Authchips . | . . . . . . . . Time . | . . . . . . . . Total Robot Build Rating . | . . . . . . . . Part Schematics Acquired . | . . . . . . . . Parts Built . | . . . . . . . . Authchips . | . . . . . . . . Time . | . . . . . . . . Total Part Build Rating . | . . . . . . . . Parts Repaired . | . . . . . . . . Time . | . . . . . . . . Parts Recycled . | . . . . . . . . Recycled Matter . | . . . . . . . . Retrieved Matter . | . . . . . . . . Retrieved Components . | . . . . . . . . Parts Scanalyzed . | . . . . . . . . Part Schematics Acquired . | . . . . . . . . Parts Damaged . | . . . . . . . . Bothacking | -11 -10 -10 -9 -9 -9 -8 -8 ------------ Run | Yrd Mat Min Mat Min Exi Min Mat Used RIF Installer . | . . . . . . . . Robots Hacked . | . . . . . . . . Non-combat . | . . . . . . . . Combat . | . . . . . . . . Robot Hacks Applied . | . . . . . . . . Relay Couplers Released . | . . . . . . . . Fabnet Peak Effective % . | . . . . . . . . Robots Rewired . | . . . . . . . . Allies Hacked . | . . . . . . . . Hacks Repelled . | . . . . . . . . Allies | -11 -10 -10 -9 -9 -9 -8 -8 -------- Run | Yrd Mat Min Mat Min Exi Min Mat Total Allies 2 | . . 2 . . . . . Largest Group 2 | . . 2 2 . . . . Highest-Rated Group 47 | . . 47 47 . . . . Highest-Rated Ally 31 | . . 31 31 . . . . Total Orders . | . . . . . . . . Ally Attacks 8 | . . . 8 . . . . Total Damage 147 | . . . 147 . . . . Kills 2 | . . . 2 . . . . Allies Corrupted . | . . . . . . . . Allies Melted . | . . . . . . . . Intel | -11 -10 -10 -9 -9 -9 -8 -8 ------- Run | Yrd Mat Min Mat Min Exi Min Mat Robot Analysis Total . | . . . . . . . . Derelict Logs Recovered 2 | . . 1 . 1 . . . Drone Launches . | . . . . . . . . Drone Recoveries . | . . . . . . . . Exploration | -11 -10 -10 -9 -9 -9 -8 -8 ------------- Run | Yrd Mat Min Mat Min Exi Min Mat Turns Passed 2869 | 70 526 528 292 259 337 584 273 Spaces Moved 1285 | 37 225 197 146 126 211 223 120 Core 4 | 1 . . . . . . 3 Treads 1150 | 34 225 137 146 126 211 221 50 Legs 60 | . . 60 . . . . . Wheels 71 | 2 . . . . . 2 67 Hover . | . . . . . . . . Flight . | . . . . . . . . Fastest Speed 50 | 50 160 200 160 160 160 130 50 Average Speed 189 | 153 190 227 190 160 160 223 156 Slowest Speed 240 | 160 240 240 240 160 160 240 240 Overloaded Moves . | . . . . . . . . Propulsion Burnouts . | . . . . . . . . Robots Hopped . | . . . . . . . . Cave-ins Triggered . | . . . . . . . . Exploration Rate (%) 35 | 3 45 47 12 38 62 55 24 Regions Visited 7 Branch Regions 4 Pre-discovered Areas . | . . . . . . . . Known Exits Taken 2 | . 1 . 1 . . . . Unknown Exits Taken 5 | 1 . 1 . 1 1 1 . Scrap Searched 4 | . . 1 . 2 . 1 . Spaces Dug 2 | . . . . . . . 2 Terrain Destroyed 2 | . . . . . . . 2 Melee 2 | . . . . . . . 2 Projectile . | . . . . . . . . AOE . | . . . . . . . . Terrain Rammed . | . . . . . . . . Walls Destroyed . | . . . . . . . . Machines Disabled . | . . . . . . . . Actions | -11 -10 -10 -9 -9 -9 -8 -8 --------- Run | Yrd Mat Min Mat Min Exi Min Mat Total 1571 | 46 291 258 154 163 211 278 170 Wait 100 | . 24 27 . 20 . 18 11 Move 1278 | 36 224 196 145 125 210 222 120 Hop . | . . . . . . . . Pick Up 26 | 2 10 4 2 1 1 3 3 Fast Attach 20 | 6 3 4 1 1 . 3 2 Attach 13 | . . 1 2 . . 2 8 Detach 1 | . . . . . . 1 . Swap 14 | 1 4 4 . 2 . 2 1 Drop 31 | . 9 11 1 3 . 6 1 Fire 70 | . 17 11 3 10 . 18 11 Melee 10 | . . . . . . . 10 Ram . | . . . . . . . . Kick . | . . . . . . . . Crush 8 | 1 . . . 1 . 3 3 Escape Stasis . | . . . . . . . . Rewire . | . . . . . . . . Trap . | . . . . . . . . Miscellaneous . | . . . . . . . . Route ------- -11/Scrapyard -10/Materials (discovered 3 exits: [*Mat x2] / *Min) -10/Mines -9/Materials (discovered 2 exits: *Min x2) -9/Mines -9/Exiles -8/Mines -8/Materials (discovered 1 exit: Fac) History --------- Turn | Location | Event 44 | -11/Scrapyard | Discovered new exit (range 16) 71 | -11/Scrapyard | Entered Materials 155 | -10/Materials | Identified exit to Mines 311 | -10/Materials | Discovered new exit (range 3) 319 | -10/Materials | Build established: Mutant 544 | -10/Materials | Discovered new exit (range 6) 597 | -10/Materials | Entered Mines 615 | -10/Mines | Met a Derelict who couldn't figure out how to use a Trap Extractor 722 | -10/Mines | A weapon hastily lodged in a ceiling crevice suddenly fell to the ground 1098 | -10/Mines | Discovered new exit (range 12) 1125 | -10/Mines | Entered Materials 1125 | -9/Materials | Accompanied by 2 allies 1125 | -9/Materials | Evolved 2 slots: Propulsion x1, Utility x1 1126 | -9/Materials | Identified exit to Mines 1130 | -9/Materials | Led the pair of lost Derelicts to an unsafe place 1417 | -9/Materials | Entered Mines 1417 | -9/Mines | Accompanied by 1 ally 1575 | -9/Mines | Learned location of 1 exit from Materials 1668 | -9/Mines | Deemed a non-threat by the Exiles lab entrance 1668 | -9/Mines | Discovered new exit (range 5) 1676 | -9/Mines | Entered Exiles 1720 | -9/Exiles | Met 8R-AWN 1739 | -9/Exiles | Met EX-HEX 1785 | -9/Exiles | Met EX-BIN 1804 | -9/Exiles | Aligned with FarCom system 1806 | -9/Exiles | Given EX-Vault access code 1846 | -9/Exiles | Opened EX-Vault 1860 | -9/Exiles | Found 0b10 Alert Chip 1892 | -9/Exiles | Warned to stay clear of 0b10 Research branches 1938 | -9/Exiles | Met EX-DEC 1994 | -9/Exiles | Discovered new exit (range 14) 2013 | -9/Exiles | Left Exiles lab with 0b10 Alert Chip 2013 | -9/Exiles | Entered Mines 2585 | -8/Mines | Discovered new exit (range 5) 2597 | -8/Mines | Entered Materials 2597 | -8/Materials | Evolved 2 slots: Propulsion x2 2598 | -8/Materials | Identified exit to Factory 2745 | -8/Materials | Garrison activated, responded to threat 2755 | -8/Materials | Lost 5 parts (1p2n1u1w) 2809 | -8/Materials | Core integrity fell below 50% 2846 | -8/Materials | Lost 6 parts (1p4n1w) 2867 | -8/Materials | Core integrity fell below 20% 2867 | -8/Materials | Released all parts (6) 2870 | -8/Materials | Destroyed by G-47 Trooper with Particle Gun Last Messages --------------- 02815_ Critical hit (Burn: +37). 02815_ U-05 Engineer lays Concrete. 02822_ Sneak attack on A-02 Transporter. 02838_ K-01 Serf collects debris. 02839_ Sneak attack on K-01 Serf. 02839_ K-01 Serf destroyed. 02840_ Extracted 25 matter. 02844_ Integration Channel disabled. 02866_ Connecting with Terminal... 02866_ Current location identified: Materials 02866_ ALERT: Suspicious activity at Terminal M008. Dispatching Investigation squad. 02867_ Released Beam Rifle. 02867_ Released Med. Storage Unit. 02867_ Released Visual Processing Unit. 02867_ Released Katana. 02867_ Released Utility Shielding. 02867_ Released Com. Wheel. 02868_ Acquired Katana. 02870_ Critical hit (Burn: +37). Map ----- +----------------------------------------------------+ | ?????????????????????????????????????????????????? | | ?????????????????????????????????????????????????? | | ?????????????????????????????????????????????????? | | ?????????????????????????????????????????????????? | | ?????????????????????????????????????????????????? | | ?????????????????????????????????????????????????? | | ?????????????????????????????????????????????????? | | ?????????????????????????????????????????????????? | | ?????????????????????????????????????????????????? | | ????????????????????????????????w????????????????? | | ?????????????????????????????????????????????????? | | ?????????????????????????????????????????????????? | | ?????????????????????????????????????????????????? | | ?????????????????????????????????????????????????? | | ?????????????????????????????????????????????????? | | ?????????????????????????????????????????????????? | | ?????????????????????????????????????????????????? | | ?????????????????????????????????????????????????? | | ?????????????????????????????????????????????????? | | ??????????????????Y??????????????????????????????? | | ??????????????????????#######????????????????????? | | ??????????????????????# !=##########T####??????? | | ??????????????????????# T"[! #??????? | | ??????????????????????# " gg g a +??????? | | ??????????????????????# g g #??????? | | ???????s??????????????# @ ##"########## #??????? | | ??????????????????????## ##########????????????? | | ???????????????????????# ## g#????????????? | | ???????????????????????# ## "w #????????????? | | ???????????????????????# ## """ #????????????? | | ???????????????????????# ##g""" #????????????? | | ???????????????????????# u##=""" ! #????????????? | | ??????????????????????## r##g="" #????????????? | | ??????????############# ug#! "" #????????????? | | ?????????? u# "" #????????????? | | ?????????? T g "" #????????????? | | ?????????? Y # " [#????????????? | | ??????????????######### # ! #????????????? | | ???????????????##########+##################### | | ???????????????# ###### | | ???????????????# ] + | | ???????????????# [ ###### | | ???????????????# #????# ########### | | ???????????????# #????# #????????????? | | ???????????????# #????# #????????????? | | ???????????????# #????# #????????????? | | ???????????????######+#########?# #?????????? | | ???????????????????????# !# #?????????? | | ???????????????????????# """ * # #?????????# | | ???????????????????????# """ + #?????????# | +----------------------------------------------------+ Best States ------------- Heat Dissipation 38 Energy Generation 14 Energy Capacity 475 Matter Stores 300 Matter Capacity 300 Sight Range 18 Robot Scan Range 14 Terrain Scan Density 85 Armor Coverage 225 Utility Shielding 33 Evasion (%) 50 Recoil Reduction 3 Item Schematics ----------------- None Robot Schematics ------------------ None Fabricated ------------ Nothing Alien Tech Used ----------------- None Achievements -------------- None Challenges ------------ None Game ------ Seed DisposableMyomerMultitool Manual? 0 Play Time 00:23:05 Cumulative 22.1 hours Start 2024.04.28 @ 20:10:45 End 2024.04.28 @ 20:33:49 Sessions 1 Manual Loads 0 Difficulty Rogue Special Mode None Game No. 22 Rogue 20 Adventurer 2 Explorer 0 Win Type - Total 0 Types 0/0/0/0/0/0/0/0/0 Lore% 20 Gallery% 29 Achievement% 26 Wizard Run 0 Options --------- Layout 1 ASCII 0 Keyboard 0 Movement Numpad Keybinds 1 Fullscreen 2 Font 24/Smallcaps Map View 50x35 Zoom Use 0% Tactical HUD 1 Map Filters NONE Filters NONE Steam 1 RUN: 5ca4a0f1-9021-4c1f-a92a-318895327f82